bitfinex/quotes_SOLUSD_20241123
["timestamp","ask_amount","ask_price","bid_price","bid_amount"]
[1732323734832,20.0,255.25,255.05,44.88767479]
[1732323735259,20.0,255.23,255.05,44.88767479]
[1732323735547,20.0,255.21,255.05,44.88767479]
[1732323736144,20.0,255.21,255.06,8.9233]
[1732323736356,20.0,255.21,255.07,0.58776234]
[1732323736730,23.776884,255.2,255.07,0.58776234]
[1732323736948,20.0,255.17,255.06,53.2233]
[1732323737544,23.776884,255.16,255.06,8.9233]
[1732323737750,20.0,255.15,255.06,8.9233]
[1732323738259,23.776884,255.16,255.06,8.9233]
[1732323738552,20.0,255.15,255.06,8.9233]
[1732323740632,20.0,255.26,255.06,9.51119337]
[1732323740836,20.0,255.15,255.06,53.81119337]
[1732323741138,20.0,255.26,255.06,53.81119337]
[1732323742148,23.776884,255.23,255.06,53.81119337]
[1732323742652,20.0,255.22,255.06,53.81119337]
[1732323743547,21.17223866,255.27,255.06,53.81119337]
[1732323743548,20.0,255.26,255.07,23.776884]
[1732323743733,20.0,255.26,255.09,15.5763]
[1732323743930,20.0,255.26,255.1,0.58764311]
[1732323744957,6.04643866,255.27,255.1,0.58764311]
[1732323745158,24.3426,255.34,255.1,0.58764311]
[1732323745359,23.776884,255.33,255.11,23.776884]
[1732323746359,20.0,255.3,255.12,0.58765043]
[1732323746551,20.0,255.28,255.12,0.58765043]
[1732323746854,20.0,255.28,255.12,44.88765043]
[1732323747438,20.0,255.28,255.13,31.8634]
[1732323747761,5.93967432,255.34,255.15,22.9648]
[1732323747945,34.4146,255.41,255.16,0.58745497]
[1732323748253,0.05946871,255.4,255.16,44.88745497]
[1732323748454,0.11893742,255.4,255.16,44.88745497]
[1732323749237,0.11893742,255.4,255.17,23.776884]
[1732323749636,23.89582142,255.4,255.17,23.776884]
[1732323749859,20.0,255.39,255.17,23.776884]
[1732323750053,20.0,255.37,255.17,23.776884]
[1732323750251,20.0,255.35,255.17,23.776884]
[1732323750452,20.0,255.35,255.17,68.076884]
[1732323750834,0.11893742,255.37,255.17,68.076884]
[1732323751341,20.11893742,255.37,255.17,68.076884]
[1732323751536,20.0,255.35,255.17,68.076884]
[1732323751751,20.0,255.35,255.18,0.58748506]
[1732323752234,0.11893742,255.37,255.18,0.58748506]
[1732323752558,20.11893742,255.37,255.18,0.58748506]
[1732323753061,20.0,255.35,255.18,0.58748506]
[1732323753256,20.0,255.35,255.19,31.8634]
[1732323753463,5.90136139,255.41,255.2,0.58742031]
[1732323753761,40.329732,255.47,255.21,23.776884]
[1732323753957,40.329732,255.47,255.21,68.076884]
[1732323754152,0.05922667,255.46,255.21,44.3]
[1732323754360,0.01134013,255.46,255.21,44.3]
[1732323754736,43.78822413,255.46,255.21,44.3]
[1732323756959,59.77496198,255.46,255.19,58.53486804]
[1732323757461,4.07631429,255.45,255.19,58.53486804]
[1732323757756,23.776884,255.42,255.19,58.53486804]
[1732323757960,20.0,255.41,255.19,58.53486804]
[1732323758144,20.0,255.39,255.19,58.53486804]
[1732323758540,20.0,255.37,255.19,58.53486804]
[1732323759155,23.776884,255.34,255.19,58.53486804]
[1732323759550,20.0,255.33,255.19,58.53486804]
[1732323759773,23.776884,255.32,255.19,58.53486804]
[1732323760064,20.0,255.29,255.19,58.53486804]
[1732323760662,20.0,255.31,255.19,58.53486804]
[1732323760867,23.776884,255.3,255.19,58.53486804]
[1732323761076,20.0,255.29,255.19,58.53486804]
[1732323762370,20.0,255.43,255.19,58.53486804]
[1732323762554,20.0,255.41,255.19,58.53486804]
[1732323762748,20.0,255.39,255.19,58.53486804]
[1732323763573,20.0,255.44,255.19,58.53486804]
[1732323764280,23.776884,255.43,255.19,58.53486804]
[1732323764450,23.776884,255.41,255.19,58.53486804]
[1732323764650,23.776884,255.39,255.19,58.53486804]
[1732323764969,23.776884,255.33,255.19,48.69021264]
[1732323765171,23.776884,255.31,255.19,4.39021264]
[1732323765476,23.776884,255.27,255.07,44.3]
[1732323765646,20.0,255.26,255.08,0.58770757]
[1732323766851,20.0,255.24,255.08,44.3]
[1732323768154,23.776884,255.23,255.09,7.6471]
[1732323769461,25.81554529,255.24,255.1,0.58774935]
[1732323770484,9.162,255.23,255.1,0.58774935]
[1732323770647,43.776884,255.21,254.97,6.10752022]
[1732323770850,23.776884,255.19,254.98,8.17354462]
[1732323771154,20.0,255.21,254.97,44.3]
[1732323771155,23.776884,255.17,254.97,23.60243767]
[1732323771371,20.0,255.21,254.97,23.60243767]
[1732323771372,23.776884,255.15,254.97,23.60243767]
[1732323771578,23.776884,255.13,254.98,0.09367462]
[1732323771752,23.776884,255.13,254.97,0.51447131]
[1732323771753,23.776884,255.11,254.97,0.51447131]
[1732323771947,23.776884,255.09,254.97,0.51447131]
[1732323772286,23.776884,255.07,254.96,0.09367462]
[1732323772651,20.0,255.04,254.96,0.09367462]
[1732323773476,23.776884,255.03,254.96,0.09367462]
[1732323773682,20.0,255.02,254.96,0.09367462]
[1732323774556,20.0,255.1,254.96,0.09367462]
[1732323774805,9.162,255.11,254.96,0.09367462]
[1732323774806,23.776884,255.07,254.96,22.79367462]
[1732323774961,5.8788965,255.11,254.97,0.58807751]
[1732323775166,10.2646,255.18,254.97,0.58807751]
[1732323775167,0.7349538,255.17,254.97,0.58807751]
[1732323775371,0.7349538,255.17,254.97,23.28807751]
[1732323775881,0.73491828,255.21,255.01,0.09367462]
[1732323776056,0.73491828,255.21,255.03,0.09367462]
[1732323776258,0.73491828,255.21,255.05,0.09367462]
[1732323776453,5.89365573,255.22,255.07,0.09367462]
[1732323776652,0.7346904,255.29,255.09,0.09367462]
[1732323776877,0.7346904,255.29,255.11,0.09367462]
[1732323777063,0.7346904,255.29,255.13,0.09367462]
[1732323778385,23.776884,255.28,255.13,0.09367462]
[1732323778687,23.776884,255.26,255.13,0.09367462]
[1732323779180,20.0,255.23,255.13,0.09367462]
[1732323779350,20.73471262,255.23,255.13,0.09367462]
[1732323779687,20.73471247,255.23,255.13,0.09367462]
[1732323780256,20.73470872,255.23,255.13,0.09367462]
[1732323780858,20.0,255.21,255.13,0.09367462]
[1732323781062,20.0,255.19,255.13,0.09367462]
[1732323781889,24.51172482,255.18,255.13,0.09367462]
[1732323782061,20.0,255.17,255.13,0.09367462]
[1732323786070,5.9852963,255.19,255.13,0.09367462]
[1732323786278,0.7348507,255.29,255.13,0.09367462]
[1732323787584,0.80629776,255.28,255.13,0.09367462]
[1732323787766,20.0,255.25,255.13,0.09367462]
[1732323787967,23.776884,255.24,255.13,0.09367462]
[1732323788284,20.0,255.23,255.13,0.09367462]
[1732323788587,24.51155484,255.22,255.13,0.09367462]
[1732323788785,23.776884,255.18,255.13,0.09367462]
[1732323788994,20.0,255.17,255.13,0.09367462]
[1732323789284,0.73485157,255.16,255.12,0.09367462]
[1732323789487,0.73485157,255.16,255.11,0.09367462]
[1732323789896,23.776884,255.16,255.11,0.09367462]
[1732323790079,20.0,255.15,255.11,0.09367462]
[1732323790587,23.776884,255.28,255.11,0.09367462]
[1732323790770,20.734772,255.27,255.11,0.09367462]
[1732323791087,20.0,255.25,255.11,0.09367462]
[1732323791281,0.73468459,255.24,255.11,0.09367462]
[1732323791869,0.7346911,255.28,255.11,0.09367462]
[1732323792492,20.0,255.26,255.11,0.09367462]
[1732323792793,20.0,255.22,255.11,0.09367462]
[1732323793091,20.0,255.22,255.11,22.79367462]
[1732323793467,19.5,255.22,255.11,22.79367462]
[1732323794884,0.7347159,255.29,255.12,0.93776159]
[1732323795200,0.73446132,255.36,255.12,26.13776159]
[1732323796265,0.73446132,255.36,255.14,0.09367462]
[1732323796469,0.73441251,255.43,255.2,0.09367462]
[1732323796669,0.73441251,255.43,255.22,0.09367462]
[1732323797798,20.73441251,255.43,255.22,0.09367462]
[1732323798092,20.73441251,255.43,255.24,0.09367462]
[1732323798295,20.73441251,255.43,255.25,0.09367462]
[1732323798597,20.73441251,255.43,255.26,0.8749]
[1732323798776,20.73441251,255.43,255.27,0.09367462]
[1732323798976,0.73441251,255.43,255.27,0.09367462]
[1732323800212,23.776884,255.42,255.27,0.09367462]
[1732323800381,23.776884,255.4,255.27,0.09367462]
[1732323800578,20.0,255.39,255.27,0.09367462]
[1732323801480,23.776884,255.38,255.27,0.09367462]
[1732323801792,23.776884,255.36,255.27,0.09367462]
[1732323801981,20.73433179,255.43,255.3,0.09367462]
[1732323802198,20.0,255.43,255.31,0.09367462]
[1732323803287,23.776884,255.42,255.31,0.09367462]
[1732323803608,20.0,255.41,255.31,0.09367462]
[1732323803930,23.776884,255.4,255.31,0.09367462]
[1732323804072,20.0,255.39,255.31,0.09367462]
[1732323806003,23.776884,255.38,255.31,0.09367462]
[1732323809403,20.0,255.43,255.31,0.09367462]
[1732323809585,23.776884,255.4,255.31,0.09367462]
[1732323809983,20.0,255.39,255.31,0.09367462]
[1732323810180,20.0,255.39,255.32,0.09367462]
[1732323812805,20.0,255.37,255.3,0.09367462]
[1732323813014,24.51122088,255.36,255.26,0.8749]
[1732323813186,20.0,255.35,255.26,0.8749]
[1732323813386,23.776884,255.34,255.26,0.8749]
[1732323816109,23.776884,255.34,255.26,23.5749]
[1732323817492,23.276884,255.34,255.26,23.5749]
[1732323821499,23.276884,255.34,255.26,18.6249]
[1732323822106,23.276884,255.34,255.23,16.4166]
[1732323822906,23.276884,255.34,255.23,15.0249]
[1732323823613,20.0,255.33,255.18,0.58751154]
[1732323823811,23.776884,255.28,255.1,7.7791094]
[1732323824018,23.776884,255.26,255.1,5.9791094]
[1732323824313,23.776884,255.24,255.1,5.9791094]
[1732323825315,23.776884,255.23,255.1,5.9791094]
[1732323825520,23.776884,255.21,255.04,0.19804277]
[1732323828724,23.776884,255.21,255.05,2.6042]
[1732323829025,23.776884,255.21,255.06,0.19811806]
[1732323829408,23.776884,255.21,255.06,2.89811806]
[1732323829409,20.0,255.2,255.06,2.89811806]
[1732323829615,23.776884,255.19,255.06,2.89811806]
[1732323835526,29.72831573,255.19,255.06,2.89811806]
[1732323838611,29.72831573,255.19,255.05,0.42651797]
[1732323838612,23.776884,255.17,255.05,0.42651797]
[1732323839122,23.776884,255.19,255.05,0.42651797]
[1732323839308,23.776884,255.17,255.05,0.42651797]
[1732323839700,23.776884,255.19,255.05,0.42651797]
[1732323839920,23.776884,255.17,255.05,0.42651797]
[1732323841032,23.776884,255.18,255.05,0.42651797]
[1732323841326,23.776884,255.16,255.05,0.42651797]
[1732323843034,23.776884,255.16,254.94,24.39510078]
[1732323843035,23.776884,255.14,254.9,5.68755039]
[1732323843215,23.776884,255.12,254.89,195.09057057]
[1732323843532,23.776884,255.1,254.89,195.09057057]
[1732323843730,23.776884,255.08,254.99,0.09367462]
[1732323843937,0.73514182,255.07,254.99,0.09367462]
[1732323844102,0.91800767,255.11,254.99,0.09367462]
[1732323844434,23.776884,255.1,254.99,0.09367462]
[1732323844735,23.776884,255.08,254.99,0.09367462]
[1732323845631,6.01516499,255.11,254.99,0.09367462]
[1732323845632,23.776884,255.1,255.01,0.09367462]
[1732323845935,20.0,255.23,255.03,0.09367462]
[1732323846106,0.73492339,255.22,255.03,0.09367462]
[1732323847021,0.82622115,255.22,255.03,0.09367462]
[1732323847425,23.776884,255.21,255.03,0.09367462]
[1732323847623,23.776884,255.19,255.03,0.09367462]
[1732323847941,0.73485729,255.18,255.03,0.09367462]
[1732323848137,23.776884,255.21,255.03,0.09367462]
[1732323848138,23.776884,255.17,255.03,0.09367462]
[1732323849015,0.73490333,255.16,255.03,0.09367462]
[1732323849315,23.776884,255.15,255.03,0.09367462]
[1732323850833,23.776884,255.13,255.03,0.09367462]
[1732323851135,23.776884,255.13,255.0,0.09367462]
[1732323851736,23.776884,255.11,255.0,0.09367462]
[1732323852733,23.776884,255.09,255.0,0.09367462]
[1732323853713,0.73513001,255.13,255.0,0.09367462]
[1732323853917,23.776884,255.12,255.0,0.09367462]
[1732323858338,24.51193487,255.12,255.0,0.09367462]
[1732323859340,23.776884,255.12,255.0,0.09367462]
[1732323862846,23.776884,255.1,255.0,0.09367462]
[1732323863034,23.776884,255.08,255.0,0.09367462]
[1732323865730,23.776884,255.11,255.0,0.09367462]
[1732323865932,0.73516401,255.12,255.0,0.09367462]
[1732323866248,37.1283,255.14,255.0,0.09367462]
[1732323868223,0.73497441,255.13,255.0,0.09367462]
[1732323869435,0.09129776,255.12,255.0,0.09367462]
[1732323869627,0.73508362,255.11,255.0,0.09367462]
[1732323870530,0.73510998,255.1,255.0,0.09367462]
[1732323870852,0.8264063,255.12,255.0,0.09367462]
[1732323871062,23.776884,255.11,255.0,0.09367462]
[1732323871229,0.73509175,255.1,255.0,0.09367462]
[1732323873831,24.51198182,255.11,255.0,0.09367462]
[1732323874156,0.73507295,255.13,255.0,0.09367462]
[1732323874466,5.84096121,255.18,255.0,0.09367462]
[1732323874634,0.73486437,255.19,255.0,0.09367462]
[1732323875949,9.46151775,255.26,255.02,23.776884]
[1732323876250,0.73475906,255.25,255.02,23.776884]
[1732323877826,23.776884,255.24,255.02,23.776884]
[1732323878030,0.734723,255.23,255.02,23.776884]
[1732323878230,20.734723,255.23,255.02,23.776884]
[1732323879057,20.0,255.21,255.02,23.776884]
[1732323879356,20.73481652,255.21,255.02,23.776884]
[1732323880257,0.73481652,255.21,255.02,23.776884]
[1732323880749,20.73481652,255.21,255.02,23.776884]
[1732323881258,0.73481652,255.21,255.02,23.776884]
[1732323883956,20.73480523,255.23,255.02,23.776884]
[1732323884260,0.73473532,255.24,255.02,48.17198478]
[1732323884555,6.55644503,255.26,255.06,0.09367462]
[1732323884736,36.5383,255.28,255.08,0.09367462]
[1732323885352,36.5383,255.28,255.1,0.09367462]
[1732323886158,0.73458756,255.27,255.1,0.09367462]
[1732323886538,23.776884,255.26,255.1,0.09367462]
[1732323888557,5.75921473,255.28,255.12,0.09367462]
[1732323888769,20.73456052,255.32,255.12,0.09367462]
[1732323889357,0.73456052,255.32,255.14,0.09367462]
[1732323889858,23.776884,255.32,255.14,0.09367462]
[1732323890163,0.73445816,255.31,255.14,0.09367462]
[1732323890754,0.73447163,255.31,255.15,0.09367462]
[1732323890947,24.51135563,255.32,255.15,0.09367462]
[1732323893749,24.51135563,255.32,255.16,0.09367462]
[1732323896947,42.50544982,255.34,255.16,0.09367462]
[1732323897150,5.96714982,255.34,255.18,0.09367462]
[1732323897352,0.73445061,255.38,255.18,0.09367462]
[1732323897353,20.73445061,255.38,255.18,0.09367462]
[1732323898143,26.05843626,255.38,255.18,0.09367462]
[1732323898349,20.0,255.36,255.19,0.09367462]
[1732323898544,0.73438959,255.35,255.19,0.09367462]
[1732323898877,23.776884,255.34,255.19,0.09367462]
[1732323899078,24.51133132,255.34,255.19,0.09367462]
[1732323899959,23.776884,255.34,255.19,0.09367462]
[1732323900461,0.73440734,255.33,255.19,0.09367462]
[1732323901159,0.73443309,255.35,255.19,0.09367462]
[1732323901349,6.76851708,255.38,255.19,0.09367462]
[1732323901549,5.915132,255.47,255.19,0.09367462]
[1732323901550,0.73427648,255.39,255.21,0.09367462]
[1732323904765,23.776884,255.38,255.21,0.09367462]
[1732323905143,24.51118253,255.38,255.21,0.09367462]
[1732323905547,5.93014838,255.4,255.23,0.09367462]
[1732323905874,0.73430152,255.46,255.24,0.09367462]
[1732323906743,0.73430152,255.46,255.28,0.09367462]
[1732323906949,25.77852373,255.46,255.28,0.09367462]
[1732323907162,0.73404174,255.45,255.28,0.09367462]
[1732323908245,23.776884,255.44,255.28,0.09367462]
[1732323908447,23.776884,255.42,255.28,0.09367462]
[1732323908872,23.776884,255.44,255.28,0.09367462]
[1732323909051,23.776884,255.42,255.28,0.09367462]
[1732323909370,0.73419305,255.43,255.28,0.09367462]
[1732323910270,23.776884,255.44,255.28,0.09367462]
[1732323910449,0.73419517,255.43,255.28,0.09367462]
[1732323911472,23.776884,255.42,255.28,0.09367462]
[1732323911773,0.73426431,255.41,255.28,0.09367462]
[1732323913450,23.776884,255.45,255.28,0.09367462]
[1732323913646,0.73417859,255.44,255.28,0.09367462]
[1732323914056,23.776884,255.43,255.28,0.09367462]
[1732323914257,0.73418467,255.42,255.28,0.09367462]
[1732323914461,23.776884,255.43,255.28,0.09367462]
[1732323914672,0.73419129,255.42,255.28,0.09367462]
[1732323914874,0.73419182,255.46,255.28,0.09367462]
[1732323915074,23.776884,255.45,255.28,0.09367462]
[1732323915275,0.73415057,255.44,255.28,0.09367462]
[1732323915953,20.73415057,255.44,255.28,0.09367462]
[1732323918075,0.73415057,255.44,255.28,0.09367462]
[1732323918271,0.73414787,255.43,255.28,0.09367462]
[1732323918470,0.73414535,255.45,255.28,0.09367462]
[1732323920977,23.776884,255.42,255.28,0.09367462]
[1732323921171,20.73425569,255.41,255.28,0.09367462]
[1732323921689,20.0,255.39,255.21,0.2793]
[1732323921977,0.73437616,255.38,255.21,0.2793]
[1732323923078,20.0,255.38,255.21,0.2793]
[1732323923254,20.73429366,255.38,255.21,0.2793]
[1732323925458,23.776884,255.37,255.21,0.2793]
[1732323925670,0.73438831,255.36,255.21,0.2793]
[1732323926576,20.0,255.38,255.21,0.2793]
[1732323926577,0.73436291,255.35,255.21,0.2793]
[1732323926781,23.776884,255.36,255.21,0.2793]
[1732323927377,0.73435654,255.35,255.21,0.2793]
[1732323928274,5.98699315,255.36,255.21,0.2793]
[1732323928475,20.0,255.38,255.21,0.2793]
[1732323928778,23.776884,255.38,255.21,0.2793]
[1732323928985,24.51116643,255.38,255.21,0.2793]
[1732323929780,30.30865589,255.38,255.21,0.2793]
[1732323929952,6.53177189,255.38,255.21,0.2793]
[1732323930156,5.79748946,255.38,255.23,23.776884]
[1732323930459,0.73433103,255.45,255.23,23.776884]
[1732323930673,0.73406891,255.46,255.23,23.776884]
[1732323931183,0.73406891,255.46,255.23,29.8884799]
[1732323931485,23.776884,255.45,255.23,29.8884799]
[1732323931783,0.73407392,255.44,255.26,23.776884]
[1732323931956,23.776884,255.45,255.26,23.776884]
[1732323932767,5.77154727,255.47,255.32,0.09367462]
[1732323932978,36.8871,255.67,255.39,0.09367462]
[1732323933172,15.607118,255.61,255.42,0.09367462]
[1732323933477,36.8871,255.67,255.44,0.09367462]
[1732323933785,2.593675,255.65,255.44,0.09367462]
[1732323934282,36.8871,255.67,255.44,0.09367462]
[1732323934485,45.59237,255.67,255.44,0.09367462]
[1732323934674,0.73346345,255.66,255.44,0.09367462]
[1732323934862,45.59237,255.67,255.44,0.09367462]
[1732323935060,0.73346829,255.66,255.44,0.09367462]
[1732323936082,23.776884,255.65,255.44,0.09367462]
[1732323936277,20.0,255.62,255.44,0.09367462]
[1732323936585,24.51054573,255.61,255.44,0.09367462]
[1732323936884,0.73366173,255.61,255.44,0.09367462]
[1732323937178,23.776884,255.63,255.44,0.09367462]
[1732323937391,20.73354686,255.66,255.44,0.09367462]
[1732323937567,23.776884,255.65,255.44,0.09367462]
[1732323937880,20.0,255.66,255.45,0.09367462]
[1732323938667,20.73346663,255.66,255.45,0.09367462]
[1732323939382,45.59237,255.67,255.45,0.09367462]
[1732323939765,8.70527,255.67,255.46,0.09367462]
[1732323940077,15.600077,255.7,255.48,0.09367462]
[1732323940268,0.73336824,255.69,255.48,0.09367462]
[1732323941182,26.09246824,255.69,255.48,0.09367462]
[1732323941384,43.776884,255.68,255.48,0.09367462]
[1732323941570,0.73348224,255.67,255.48,0.09367462]
[1732323947667,20.73348224,255.67,255.48,0.09367462]
[1732323949064,23.776884,255.66,255.48,0.09367462]
[1732323949269,20.73349161,255.65,255.48,0.09367462]
[1732323949469,23.776884,255.64,255.48,0.09367462]
[1732323949689,0.73360628,255.63,255.48,0.09367462]
[1732323950080,0.73360628,255.63,255.26,81.0]
[1732323950081,20.0,255.61,255.32,6.1115959]
[1732323950270,30.519,255.67,255.3,231.4659405]
[1732323950271,20.0,255.57,255.3,194.87829828]
[1732323950586,20.0,255.55,255.3,194.87829828]
[1732323950886,20.73383178,255.66,255.33,2.5]
[1732323951096,23.776884,255.63,255.33,2.5]
[1732323951274,20.73373742,255.62,255.33,2.5]
[1732323951595,20.0,255.6,255.34,23.776884]
[1732323951785,24.51061652,255.59,255.34,23.776884]
[1732323951989,20.0,255.6,255.36,23.776884]
[1732323952484,20.0,255.62,255.38,23.776884]
[1732323952691,20.73357979,255.62,255.38,23.776884]
[1732323952877,20.0,255.62,255.38,23.776884]
[1732323953396,20.0,255.62,255.38,26.276884]
[1732323953789,20.73358427,255.62,255.38,26.276884]
[1732323954093,20.0,255.6,255.37,23.776884]
[1732323954297,0.73372543,255.59,255.37,23.776884]
[1732323955203,0.73372543,255.59,255.35,23.776884]
[1732323955900,0.73372543,255.59,255.32,2.5]
[1732323956112,0.73372543,255.59,255.35,23.776884]
[1732323956401,0.73372543,255.59,255.33,28.77319746]
[1732323956606,20.0,255.57,255.33,28.77319746]
[1732323956778,0.73379657,255.56,255.33,28.77319746]
[1732323957404,23.776884,255.58,255.33,28.77319746]
[1732323957600,0.73378916,255.57,255.33,28.77319746]
[1732323958705,20.0,255.57,255.33,28.77319746]
[1732323958910,0.73379246,255.56,255.33,28.77319746]
[1732323959782,33.743584,255.55,255.33,4.99631346]
[1732323960103,20.73384158,255.54,255.33,4.99631346]
[1732323961084,20.73384158,255.54,255.34,23.776884]
[1732323963015,20.0,255.54,255.34,23.776884]
[1732323963501,9.9667,255.55,255.34,23.776884]
[1732323967413,9.9667,255.55,255.36,2.5]
[1732323967584,25.9668,255.58,255.37,23.776884]
[1732323967908,25.9668,255.58,255.37,28.77319746]
[1732323969401,0.73366835,255.57,255.37,28.77319746]
[1732323969601,25.9668,255.58,255.37,28.77319746]
[1732323971104,25.9668,255.58,255.39,2.5]
[1732323971303,25.9668,255.58,255.4,23.776884]
[1732323972919,9.9667,255.61,255.44,23.776884]
[1732323973288,25.9668,255.64,255.46,23.776884]
[1732323973686,25.9668,255.64,255.45,23.776884]
[1732323975711,31.82123643,255.64,255.45,23.776884]
[1732323977689,0.73354153,255.63,255.45,23.776884]
[1732323978091,31.82123643,255.64,255.45,23.776884]
[1732323978819,0.73353247,255.63,255.45,23.776884]
[1732323981510,32.55480459,255.64,255.45,29.8884799]
[1732323981717,31.82123643,255.64,255.47,23.776884]
[1732323981896,31.82123643,255.64,255.49,0.09367462]
[1732323982222,31.82123643,255.64,255.51,0.09367462]
[1732323982399,31.82123643,255.64,255.53,0.09367462]
[1732323983315,31.82123643,255.64,255.54,0.09367462]
[1732323984399,20.0,255.63,255.54,0.09367462]
[1732323987998,31.82123643,255.64,255.54,0.09367462]
[1732323988611,20.0,255.63,255.54,0.09367462]
[1732323991695,31.82123643,255.64,255.54,0.09367462]
[1732323992920,31.82123643,255.64,255.56,0.09367462]
[1732323998027,20.0,255.63,255.56,0.09367462]
[1732323999114,20.73350374,255.63,255.56,0.09367462]
[1732323999513,20.73350374,255.63,255.49,6.1115959]
[1732323999829,20.73350374,255.63,255.48,6.1115959]
[1732324000407,20.73350374,255.63,255.49,6.1115959]
[1732324000606,20.73350374,255.63,255.48,6.1115959]
[1732324003526,20.0,255.61,255.48,6.1115959]
[1732324003729,20.0,255.61,255.44,25.28991532]
[1732324003730,20.0,255.61,255.47,6.1115959]
[1732324005123,10.5909,255.62,255.48,6.1115959]
[1732324006031,10.5909,255.62,255.47,6.1115959]
[1732324006534,10.5909,255.62,255.48,6.1115959]
[1732324007038,10.5909,255.62,255.47,6.1115959]
[1732324007414,10.5909,255.62,255.45,12.19254144]
[1732324007415,10.5909,255.62,255.48,6.1115959]
[1732324007811,10.5909,255.62,255.49,29.8884799]
[1732324008014,10.5909,255.62,255.5,6.1115959]
[1732324008425,10.5909,255.62,255.51,29.8884799]
[1732324008643,10.5909,255.62,255.53,6.1115959]
[1732324008928,10.5909,255.62,255.54,6.1115959]
[1732324009310,10.5909,255.62,255.55,6.1115959]
[1732324009517,10.5909,255.62,255.54,6.1115959]
[1732324010143,10.5909,255.62,255.55,6.1115959]
[1732324010536,10.5909,255.62,255.55,23.776884]
[1732324012052,10.5909,255.62,255.55,29.8884799]
[1732324014441,10.5909,255.62,255.57,0.09367462]
[1732324018641,10.5909,255.62,255.58,0.09367462]
[1732324023524,10.5909,255.62,255.59,0.09367462]
[1732324024443,25.9668,255.64,255.59,0.09367462]
[1732324024625,10.3117,255.68,255.6,0.09367462]
[1732324024818,10.3117,255.68,255.61,0.09367462]
[1732324025016,24.9555,255.7,255.63,0.09367462]
[1732324025242,24.9555,255.7,255.64,0.09367462]
[1732324025544,24.9555,255.7,255.66,0.09367462]
[1732324028929,24.9555,255.7,255.62,6.1115959]
[1732324029122,24.9555,255.7,255.59,6.1115959]
[1732324029752,24.9555,255.7,255.58,6.1115959]
[1732324030842,20.0,255.67,255.57,6.1115959]
[1732324031046,10.3117,255.66,255.57,6.1115959]
[1732324031561,20.0,255.65,255.56,6.1115959]
[1732324032049,20.0,255.65,255.54,6.1115959]
[1732324032342,10.3117,255.66,255.54,6.1115959]
[1732324032845,10.3117,255.66,255.55,6.1115959]
[1732324033540,10.3117,255.66,255.56,6.1115959]
[1732324033753,10.3117,255.66,255.55,6.1115959]
[1732324035153,10.3117,255.66,255.56,6.1115959]
[1732324035360,10.3117,255.66,255.55,6.1115959]
[1732324036732,10.3117,255.66,255.56,6.1115959]
[1732324036942,10.3117,255.66,255.57,6.1115959]
[1732324037443,20.0,255.65,255.58,6.1115959]
[1732324037649,10.3117,255.66,255.58,6.1115959]
[1732324037845,10.3117,255.66,255.57,6.1115959]
[1732324038842,10.3117,255.66,255.55,12.19254144]
[1732324038843,10.3117,255.66,255.58,6.1115959]
[1732324039346,10.3117,255.66,255.57,6.1115959]
[1732324039538,26.0876,255.65,255.55,6.1115959]
[1732324041137,26.0876,255.65,255.56,6.1115959]
[1732324041537,26.0876,255.65,255.57,6.1115959]
[1732324042261,26.0876,255.65,255.55,6.1115959]
[1732324042747,26.0876,255.65,255.53,6.1115959]
[1732324042748,26.82114729,255.65,255.53,6.1115959]
[1732324042948,20.0,255.64,255.53,6.1115959]
[1732324043460,20.73352345,255.64,255.53,6.1115959]
[1732324043655,0.73352345,255.64,255.53,6.1115959]
[1732324043834,0.73352345,255.64,255.54,6.1115959]
[1732324044038,0.73352345,255.64,255.53,6.1115959]
[1732324044234,0.73352345,255.64,255.5,24.39510078]
[1732324044235,20.0,255.62,255.52,6.1115959]
[1732324044464,0.73365337,255.61,255.5,6.1115959]
[1732324045253,30.4832,255.62,255.5,6.1115959]
[1732324045445,30.4832,255.62,255.48,12.19254144]
[1732324045446,30.4832,255.62,255.48,6.1115959]
[1732324046352,30.4832,255.62,255.49,6.1115959]
[1732324046543,30.4832,255.62,255.48,6.1115959]
[1732324047550,20.0,255.6,255.48,6.1115959]
[1732324047748,26.0876,255.59,255.48,6.1115959]
[1732324048767,10.4832,255.57,255.47,6.1115959]